fUST/lending_fUST_20251001
["ID","MTS","AMOUNT","RATE_DAILY","PERIOD"]
[388712469,1759330244005,-779.81,0.00020273,2]
[388712470,1759330244015,-500.0,0.00020273,2]
[388712471,1759330244024,-500.0,0.00020273,2]
[388712472,1759330244033,-500.0,0.00020273,2]
[388712473,1759330244043,-1010.72,0.00020273,2]
[388712474,1759330244052,-500.0,0.00020273,2]
[388712475,1759330244063,-500.0,0.00020273,2]
[388712476,1759330244080,-540.84,0.00020273,2]
[388712477,1759330244090,-568.59,0.00020273,2]
[388712478,1759330244100,-166.0,0.00020403,2]
[388712479,1759330244109,-500.0,0.00020521,2]
[388712480,1759330244119,-500.0,0.00020521,2]
[388712481,1759330244129,-1000.0,0.00020521,2]
[388712482,1759330244138,-1000.0,0.00020521,2]
[388712483,1759330244148,-1000.0,0.00020521,2]
[388712484,1759330244158,-1000.0,0.00020521,2]
[388712485,1759330244168,-1000.0,0.00020521,2]
[388712486,1759330244177,-500.0,0.00020538,2]
[388712487,1759330244187,-500.0,0.00020547,2]
[388712488,1759330244196,-500.0,0.00020547,2]
[388712489,1759330244207,-1322.06,0.00020547,2]
[388712490,1759330244216,-500.0,0.00020547,2]
[388712491,1759330244225,-500.0,0.00020547,2]
[388712492,1759330244236,-857.86,0.00020547,2]
[388712493,1759330244249,-340.96891418,0.00020547,2]
[388712494,1759330244258,-333.02,0.00020547,2]
[388712495,1759330244267,-500.0,0.00020547,2]
[388712496,1759330244276,-542.62,0.00020547,2]
[388712497,1759330244286,-500.0,0.00020547,2]
[388712498,1759330244295,-553.33,0.00020547,2]
[388712499,1759330244303,-500.0,0.00020547,2]
[388712500,1759330244319,-500.0,0.00020547,2]
[388712501,1759330244329,-1724.15,0.00020547,2]
[388712502,1759330244339,-2004.55,0.00020547,2]
[388712503,1759330244348,-500.0,0.00020547,2]
[388712504,1759330244357,-2767.22,0.00020547,2]
[388712505,1759330244367,-500.0,0.00020547,2]
[388712506,1759330244376,-500.0,0.00020547,2]
[388712507,1759330244385,-500.0,0.00020547,2]
[388712508,1759330244395,-847.83,0.00020547,2]
[388712509,1759330244404,-500.0,0.00020547,2]
[388712510,1759330244413,-500.0,0.00020547,2]
[388712511,1759330244428,-500.0,0.00020547,2]
[388712512,1759330244438,-530.49,0.00020547,2]
[388712513,1759330244448,-500.0,0.00020547,2]
[388712514,1759330244458,-500.0,0.00020547,2]
[388712515,1759330244467,-500.0,0.00020547,2]
[388712516,1759330244476,-500.0,0.00020547,2]
[388712517,1759330244485,-500.0,0.00020547,2]
[388712518,1759330244497,-500.0,0.00020547,2]
[388712519,1759330244506,-500.0,0.00020547,2]
[388712520,1759330244515,-500.0,0.00020547,2]
[388712521,1759330244524,-500.0,0.00020547,2]
[388712522,1759330244533,-500.0,0.00020547,2]
[388712523,1759330244542,-500.0,0.00020547,2]
[388712524,1759330244551,-500.0,0.00020547,2]
[388712525,1759330244561,-500.0,0.00020547,2]
[388712526,1759330244570,-500.0,0.00020547,2]
[388712527,1759330244579,-500.0,0.00020547,2]
[388712528,1759330244588,-641.95,0.00020547,2]
[388712529,1759330244597,-500.0,0.00020547,2]
[388712530,1759330244606,-500.0,0.00020547,2]
[388712531,1759330244615,-500.0,0.00020547,2]
[388712532,1759330244624,-601.15,0.00020547,2]
[388712533,1759330244633,-916.44,0.00020547,2]
[388712534,1759330244642,-500.0,0.00020547,2]
[388712535,1759330244651,-500.0,0.00020547,2]
[388712536,1759330244660,-500.0,0.00020547,2]
[388712537,1759330244669,-514.74,0.00020547,2]
[388712538,1759330244678,-4212.29,0.00020547,2]
[388712539,1759330244687,-500.0,0.00020547,2]
[388712540,1759330244696,-500.0,0.00020547,2]
[388712541,1759330244706,-500.0,0.00020547,2]
[388712542,1759330244715,-779.81,0.00020547,2]
[388712543,1759330244724,-500.0,0.00020547,2]
[388712544,1759330244733,-500.0,0.00020547,2]
[388712545,1759330244742,-180.87837558,0.00020547,2]
[388712546,1759330244752,-1010.72,0.00020547,2]
[388712547,1759330244865,-500.0,0.00020547,2]
[388712548,1759330244890,-500.0,0.00020547,2]
[388712549,1759330244900,-540.84,0.00020547,2]
[388712550,1759330244911,-568.59,0.00020547,2]
[388712551,1759330244921,-1103.51515623,0.00020549,2]
[388712552,1759330244931,-1685.46092578,0.00020565,2]
[388712553,1759330244940,-182.4406186,0.00020725,2]
[388712554,1759330244949,-151.10690839,0.00020725,2]
[388712555,1759330244959,-1198.9125712,0.00020787,2]
[388712556,1759330244970,-746.18,0.00020812,3]
[388712557,1759330244979,-373.1,0.00020812,3]
[388712558,1759330244988,-500.0,0.00020812,2]
[388712559,1759330244998,-500.0,0.00020821,2]
[388712560,1759330245008,-500.0,0.00020821,2]
[388712561,1759330245017,-1322.06,0.00020821,2]
[388712562,1759330245027,-500.0,0.00020821,2]
[388712563,1759330245036,-500.0,0.00020821,2]
[388712564,1759330245046,-857.86,0.00020821,2]
[388712565,1759330245057,-500.0,0.00020821,2]
[388712566,1759330245066,-542.62,0.00020821,2]
[388712567,1759330245075,-500.0,0.00020821,2]
[388712568,1759330245084,-553.33,0.00020821,2]
[388712569,1759330245094,-500.0,0.00020821,2]
[388712570,1759330245102,-500.0,0.00020821,2]
[388712571,1759330245114,-1724.15,0.00020821,2]
[388712572,1759330245124,-2004.55,0.00020821,2]
[388712573,1759330245134,-500.0,0.00020821,2]
[388712574,1759330245143,-2767.22,0.00020821,2]
[388712575,1759330245152,-500.0,0.00020821,2]
[388712576,1759330245161,-500.0,0.00020821,2]
[388712577,1759330245170,-506.44,0.00020821,2]
[388712578,1759330245180,-847.83,0.00020821,2]
[388712579,1759330245189,-500.0,0.00020821,2]
[388712580,1759330245198,-196.52533773,0.00020821,2]
[388712581,1759330245208,-500.0,0.00020821,2]
[388712582,1759330245217,-530.49,0.00020821,2]
[388712583,1759330245227,-500.0,0.00020821,2]
[388712584,1759330245236,-500.0,0.00020821,2]
[388712585,1759330245245,-500.0,0.00020821,2]
[388712586,1759330245255,-500.0,0.00020821,2]
[388712587,1759330245264,-500.0,0.00020821,2]
[388712588,1759330245273,-500.0,0.00020821,2]
[388712589,1759330245282,-500.0,0.00020821,2]
[388712590,1759330245292,-262.81,0.00020821,2]
[388712591,1759330245301,-500.0,0.00020821,2]
[388712592,1759330245311,-500.0,0.00020821,2]
[388712593,1759330245320,-500.0,0.00020821,2]
[388712594,1759330245329,-500.0,0.00020821,2]
[388712595,1759330245338,-500.0,0.00020821,2]
[388712596,1759330245347,-500.0,0.00020821,2]
[388712597,1759330245356,-500.0,0.00020821,2]
[388712598,1759330245365,-641.95,0.00020821,2]
[388712599,1759330245374,-500.0,0.00020821,2]
[388712600,1759330245383,-500.0,0.00020821,2]
[388712601,1759330245393,-500.0,0.00020821,2]
[388712602,1759330245402,-601.15,0.00020821,2]
[388712603,1759330245413,-916.44,0.00020821,2]
[388712604,1759330245424,-500.0,0.00020821,2]
[388712605,1759330245433,-500.0,0.00020821,2]
[388712606,1759330245442,-500.0,0.00020821,2]
[388712607,1759330245452,-4212.29,0.00020821,2]
[388712608,1759330245462,-514.74,0.00020821,2]
[388712609,1759330245472,-362.56,0.00020821,2]
[388712610,1759330245481,-500.0,0.00020821,2]
[388712611,1759330245490,-500.0,0.00020821,2]
[388712612,1759330245502,-779.81,0.00020821,2]
[388712613,1759330245512,-500.0,0.00020821,2]
[388712614,1759330245522,-500.0,0.00020821,2]
[388712615,1759330245532,-1010.72,0.00020821,2]
[388712616,1759330245541,-500.0,0.00020821,2]
[388712617,1759330245550,-500.0,0.00020821,2]
[388712618,1759330245561,-540.84,0.00020821,2]
[388712619,1759330245571,-568.59,0.00020821,2]
[388712620,1759330245581,-151.0,0.00020822,2]
[388712621,1759330245590,-151.0,0.00020822,2]
[388712622,1759330245599,-151.0,0.00020822,2]
[388712623,1759330245610,-151.0,0.00020822,2]
[388712624,1759330245619,-151.0,0.00020822,2]
[388712625,1759330245629,-151.0,0.00020822,2]
[388712626,1759330245639,-151.0,0.00020822,2]
[388712627,1759330245649,-151.0,0.00020822,2]
[388712628,1759330245658,-285.30451265,0.00020822,2]
[388712629,1759330245667,-279.90410908,0.00020822,2]
[388712630,1759330245677,-151.0,0.00020822,2]
[388712631,1759330245686,-151.0,0.00020822,2]
[388712632,1759330245695,-151.0,0.00020822,2]
[388712633,1759330245705,-151.0,0.00020822,2]
[388712634,1759330245714,-151.0,0.00020822,2]
[388712635,1759330245724,-151.0,0.00020822,2]
[388712636,1759330245733,-151.0,0.00020822,2]
[388712637,1759330245742,-151.0,0.00020822,2]
[388712638,1759330245751,-151.0,0.00020822,2]
[388712639,1759330245761,-151.0,0.00020822,2]
[388712640,1759330245771,-151.0,0.00020822,2]
[388712641,1759330245780,-151.0,0.00020822,2]
[388712642,1759330245790,-151.0,0.00020822,2]
[388712643,1759330245800,-151.0,0.00020822,2]
[388712644,1759330245812,-500.0,0.00020822,2]
[388712645,1759330245821,-151.0,0.00020822,2]
[388712646,1759330245831,-151.0,0.00020822,2]
[388712648,1759330245840,-151.28892508,0.00020822,2]
[388712649,1759330245850,-151.0,0.00020822,2]
[388712650,1759330245860,-151.58698895,0.00020822,2]
[388712651,1759330245869,-230.81523869,0.00020822,2]
[388712652,1759330245879,-276.87052793,0.00020822,2]
[388712653,1759330245888,-151.38070416,0.00020822,2]
[388712654,1759330245898,-151.20915403,0.00020822,2]
[388712655,1759330245908,-168.03464692,0.00020822,2]
[388712656,1759330245917,-151.0,0.00020822,2]
[388712658,1759330245927,-151.0,0.00020822,2]
[388712659,1759330245936,-151.28357701,0.00020822,2]
[388712660,1759330245945,-151.21982697,0.00020822,2]
[388712661,1759330245955,-151.0,0.00020822,2]
[388712663,1759330245964,-420.0,0.00020898,2]
[388712664,1759330245974,-1000.0,0.00021,12]
[388712665,1759330245984,-1004.34449941,0.00021051,2]
[388712667,1759330245993,-1500.0,0.00021068,2]
[388712669,1759330246003,-500.0,0.00021068,2]
[388712670,1759330246012,-500.0,0.00021068,2]
[388712671,1759330246021,-500.0,0.00021086,2]
[388712672,1759330246030,-500.0,0.00021095,2]
[388712673,1759330246040,-247.82,0.00021095,2]
[388712674,1759330246050,-1322.06,0.00021095,2]
[388712675,1759330246059,-500.0,0.00021095,2]
[388712676,1759330246069,-500.0,0.00021095,2]
[388712677,1759330246078,-857.86,0.00021095,2]
[388712678,1759330246088,-500.0,0.00021095,2]
[388712679,1759330246097,-542.62,0.00021095,2]
[388712680,1759330246106,-320.94144627,0.00021095,2]
[388712681,1759330246115,-553.33,0.00021095,2]
[388712682,1759330246125,-500.0,0.00021095,2]
[388712683,1759330246134,-500.0,0.00021095,2]
[388712684,1759330246143,-1724.15,0.00021095,2]
[388712685,1759330246153,-2004.55,0.00021095,2]
[388712686,1759330246162,-500.0,0.00021095,2]
[388712687,1759330246172,-2767.22,0.00021095,2]
[388712688,1759330246181,-500.0,0.00021095,2]
[388712689,1759330246191,-500.0,0.00021095,2]
[388712690,1759330246200,-847.83,0.00021095,2]
[388712692,1759330246209,-248.02,0.00021095,2]
[388712693,1759330246218,-358.6936852,0.00021095,2]
[388712695,1759330246227,-530.49,0.00021095,2]
[388712697,1759330246236,-500.0,0.00021095,2]
[388712698,1759330246245,-500.0,0.00021095,2]
[388712700,1759330246254,-500.0,0.00021095,2]
[388712701,1759330246264,-500.0,0.00021095,2]
[388712702,1759330246274,-500.0,0.00021095,2]
[388712703,1759330246284,-500.0,0.00021095,2]
[388712704,1759330246293,-500.0,0.00021095,2]
[388712705,1759330246303,-500.0,0.00021095,2]
[388712706,1759330246313,-500.0,0.00021095,2]
[388712707,1759330246323,-500.0,0.00021095,2]
[388712708,1759330246333,-500.0,0.00021095,2]
[388712709,1759330246342,-500.0,0.00021095,2]
[388712710,1759330246352,-500.0,0.00021095,2]
[388712711,1759330246362,-500.0,0.00021095,2]
[388712712,1759330246371,-641.95,0.00021095,2]
[388712713,1759330246380,-500.0,0.00021095,2]
[388712714,1759330246390,-500.0,0.00021095,2]
[388712715,1759330246399,-500.0,0.00021095,2]
[388712716,1759330246409,-601.15,0.00021095,2]
[388712717,1759330246420,-916.44,0.00021095,2]
[388712718,1759330246430,-500.0,0.00021095,2]
[388712719,1759330246439,-500.0,0.00021095,2]
[388712720,1759330246448,-500.0,0.00021095,2]
[388712721,1759330246460,-4212.29,0.00021095,2]
[388712722,1759330246469,-514.74,0.00021095,2]
[388712723,1759330246478,-500.0,0.00021095,2]
[388712724,1759330246487,-500.0,0.00021095,2]
[388712725,1759330246497,-779.81,0.00021095,2]
[388712726,1759330246507,-500.0,0.00021095,2]
[388712727,1759330246516,-500.0,0.00021095,2]
[388712728,1759330246526,-1010.72,0.00021095,2]
[388712729,1759330246535,-500.0,0.00021095,2]
[388712730,1759330246544,-500.0,0.00021095,2]
[388712731,1759330246553,-540.84,0.00021095,2]
[388712732,1759330246563,-568.59,0.00021095,2]
[388712733,1759330246572,-151.0,0.00021096,2]
[388712734,1759330246582,-151.0,0.00021096,2]
[388712735,1759330246591,-151.0,0.00021096,2]
[388712736,1759330246600,-151.0,0.00021096,2]
[388712737,1759330246609,-151.0,0.00021096,2]
[388712738,1759330246619,-151.0,0.00021096,2]
[388712739,1759330246628,-151.0,0.00021096,2]
[388712740,1759330246638,-500.0,0.00021096,2]
[388712741,1759330246647,-151.0,0.00021096,2]
[388712742,1759330246657,-151.0,0.00021096,2]
[388712743,1759330246667,-151.0,0.00021096,2]
[388712745,1759330246677,-151.0,0.00021096,2]
[388712746,1759330246686,-160.0,0.00021195,2]
[388712747,1759330246696,-1685.46092578,0.00021256,2]
[388712748,1759330246706,-500.0,0.0002136,2]
[388712749,1759330246716,-500.0,0.00021369,2]
[388712750,1759330246726,-1322.06,0.00021369,2]
[388712751,1759330246736,-341.09,0.00021369,2]
[388712752,1759330246745,-500.0,0.00021369,2]
[388712753,1759330246755,-857.86,0.00021369,2]
[388712754,1759330246764,-500.0,0.00021369,2]
[388712755,1759330246773,-542.62,0.00021369,2]
[388712756,1759330246783,-553.33,0.00021369,2]
[388712757,1759330246792,-500.0,0.00021369,2]
[388712758,1759330246801,-231.77114797,0.00021369,2]
[388712759,1759330246811,-1724.15,0.00021369,2]
[388712760,1759330246820,-2004.55,0.00021369,2]
[388712761,1759330246830,-500.0,0.00021369,2]
[388712762,1759330246839,-2767.22,0.00021369,2]
[388712763,1759330246848,-500.0,0.00021369,2]
[388712764,1759330246857,-500.0,0.00021369,2]
[388712765,1759330246866,-847.83,0.00021369,2]
[388712766,1759330246875,-530.49,0.00021369,2]
[388712767,1759330246885,-500.0,0.00021369,2]
[388712768,1759330246894,-500.0,0.00021369,2]
[388712769,1759330246903,-500.0,0.00021369,2]
[388712770,1759330246913,-500.0,0.00021369,2]
[388712771,1759330246922,-500.0,0.00021369,2]
[388712772,1759330246931,-500.0,0.00021369,2]
[388712773,1759330246941,-500.0,0.00021369,2]
[388712774,1759330246951,-500.0,0.00021369,2]
[388712775,1759330246960,-601.63,0.00021369,2]
[388712776,1759330246970,-500.0,0.00021369,2]
[388712777,1759330246979,-500.0,0.00021369,2]
[388712778,1759330246988,-342.85,0.00021369,2]
[388712779,1759330246998,-500.0,0.00021369,2]
[388712780,1759330247007,-500.0,0.00021369,2]
[388712781,1759330247016,-641.95,0.00021369,2]
[388712782,1759330247026,-500.0,0.00021369,2]
[388712783,1759330247035,-500.0,0.00021369,2]
[388712784,1759330247044,-500.0,0.00021369,2]
[388712785,1759330247054,-601.15,0.00021369,2]
[388712786,1759330247065,-916.44,0.00021369,2]
[388712787,1759330247074,-500.0,0.00021369,2]
[388712788,1759330247084,-500.0,0.00021369,2]
[388712789,1759330247094,-500.0,0.00021369,2]
[388712790,1759330247103,-4212.29,0.00021369,2]
[388712791,1759330247112,-514.74,0.00021369,2]
[388712792,1759330247122,-500.0,0.00021369,2]
[388712793,1759330247131,-500.0,0.00021369,2]
[388712794,1759330247141,-779.81,0.00021369,2]
[388712795,1759330247150,-500.0,0.00021369,2]
[388712796,1759330247159,-500.0,0.00021369,2]
[388712797,1759330247168,-1010.72,0.00021369,2]
[388712798,1759330247178,-500.0,0.00021369,2]
[388712799,1759330247187,-500.0,0.00021369,2]
[388712800,1759330247197,-540.84,0.00021369,2]
[388712801,1759330247206,-568.59,0.00021369,2]
[388712802,1759330247216,-198.0,0.0002137,2]
[388712803,1759330247226,-152.82333125,0.0002137,2]
[388712804,1759330247235,-198.0,0.0002137,2]
[388712805,1759330247245,-198.0,0.0002137,2]
[388712806,1759330247255,-198.0,0.0002137,2]
[388712807,1759330247264,-198.0,0.0002137,2]
[388712808,1759330247274,-198.0,0.0002137,2]
[388712809,1759330247282,-447.10331798,0.0002137,2]
[388712810,1759330247291,-198.0,0.0002137,2]
[388712811,1759330247301,-198.0,0.0002137,2]
[388712812,1759330247311,-198.0,0.0002137,2]
[388712813,1759330247320,-198.0,0.0002137,2]
[388712814,1759330247329,-182.4406186,0.0002145,2]
[388712815,1759330247338,-2924.0,0.00021452,2]
[388712816,1759330247348,-979.0,0.00021452,2]
[388712817,1759330247357,-2156.0,0.00021452,2]
[388712818,1759330247366,-630.0,0.00021452,2]
[388712819,1759330247376,-150.0,0.00021452,2]
[388712820,1759330247385,-150.0,0.00021452,2]
[388712821,1759330247395,-410.0,0.00021452,2]
[388712822,1759330247404,-428.711,0.00021452,2]
[388712823,1759330247416,-150.0,0.00021452,2]
[388712824,1759330247426,-500.0,0.00021473,2]
[388712825,1759330247437,-500.0,0.00021473,2]
[388712826,1759330247446,-501.30909708,0.00021473,2]
[388712827,1759330247458,-561.17950999,0.00021473,2]
[388712828,1759330247467,-553.47499876,0.00021473,2]
[388712829,1759330247477,-500.0,0.00021473,2]
[388712830,1759330247488,-500.0,0.00021473,2]
[388712831,1759330247498,-500.0,0.00021473,2]
[388712832,1759330247507,-500.0,0.00021473,2]
[388712833,1759330247517,-133859.78909178,0.000215,28]
[388712834,1759330247527,-500.0,0.00021616,2]
[388712835,1759330247537,-500.0,0.00021634,2]
[388712836,1759330247547,-500.0,0.00021643,2]
[388712837,1759330247558,-1322.06,0.00021643,2]
[388712838,1759330247569,-500.0,0.00021643,2]
[388712839,1759330247579,-857.86,0.00021643,2]
[388712840,1759330247588,-500.0,0.00021643,2]
[388712841,1759330247598,-542.62,0.00021643,2]
[388712842,1759330247608,-553.33,0.00021643,2]
[388712843,1759330247617,-500.0,0.00021643,2]
[388712844,1759330247627,-1724.15,0.00021643,2]
[388712845,1759330247637,-2004.55,0.00021643,2]
[388712846,1759330247646,-500.0,0.00021643,2]
[388712847,1759330247656,-2767.22,0.00021643,2]
[388712848,1759330247665,-500.0,0.00021643,2]
[388712849,1759330247675,-500.0,0.00021643,2]
[388712850,1759330247684,-847.83,0.00021643,2]
[388712851,1759330247694,-530.49,0.00021643,2]
[388712852,1759330247704,-500.0,0.00021643,2]
[388712853,1759330247713,-500.0,0.00021643,2]
[388712854,1759330247723,-500.0,0.00021643,2]
[388712855,1759330247733,-500.0,0.00021643,2]
[388712856,1759330247742,-500.0,0.00021643,2]
[388712857,1759330247751,-228.53802242,0.00021643,2]
[388712858,1759330247760,-369.79073266,0.00021643,2]
[388712859,1759330247769,-500.0,0.00021643,2]
[388712860,1759330247779,-500.0,0.00021643,2]
[388712861,1759330247788,-500.0,0.00021643,2]
[388712862,1759330247797,-500.0,0.00021643,2]
[388712863,1759330247807,-641.95,0.00021643,2]
[388712864,1759330247819,-500.0,0.00021643,2]
[388712865,1759330247828,-507.16857846,0.00021643,2]
[388712866,1759330247837,-500.0,0.00021643,2]
[388712867,1759330247847,-601.15,0.00021643,2]
[388712868,1759330247856,-916.44,0.00021643,2]
[388712869,1759330247865,-500.0,0.00021643,2]
[388712870,1759330247874,-500.0,0.00021643,2]
[388712871,1759330247885,-500.0,0.00021643,2]
[388712872,1759330247895,-4212.29,0.00021643,2]
[388712873,1759330247905,-514.74,0.00021643,2]
[388712874,1759330247914,-500.0,0.00021643,2]
[388712875,1759330247923,-500.0,0.00021643,2]
[388712876,1759330247933,-779.81,0.00021643,2]
[388712877,1759330247943,-500.0,0.00021643,2]
[388712878,1759330247952,-500.0,0.00021643,2]
[388712879,1759330248076,-1010.72,0.00021643,2]
[388712880,1759330248087,-500.0,0.00021643,2]
[388712881,1759330248096,-500.0,0.00021643,2]
[388712882,1759330248105,-540.84,0.00021643,2]
[388712883,1759330248115,-568.59,0.00021643,2]
[388712884,1759330248127,-151.0,0.000217,4]
[388712885,1759330248136,-260.0,0.00021743,2]
[388712886,1759330248146,-4787.90856381,0.00021777,2]
[388712887,1759330248155,-9463.44507324,0.000218,28]
[388712888,1759330248247,-11723.89067197,0.000218,28]
[388712889,1759330248259,-665.217836,0.000218,28]
[388712890,1759330248398,85.23958258,0.00018449,2]
[388712891,1759330248425,1414.76041742,0.00018449,2]
[388712892,1759330248516,-693.12,0.00019178,2]
[388712893,1759330248525,-693.12,0.00019452,2]
[388712894,1759330248535,-693.12,0.00019726,2]
[388712895,1759330248545,-693.12,0.0002,2]
[388712896,1759330248555,-693.12,0.00020273,2]
[388712897,1759330248565,-693.12,0.00020547,2]
[388712898,1759330248574,-693.12,0.00020821,2]
[388712899,1759330248583,-40167.66902499,0.000218,28]
[388712900,1759330248784,-500.0,0.00019178,2]
[388712901,1759330248794,-693.12,0.00021095,2]
[388712902,1759330248804,-693.12,0.00021369,2]
[388712903,1759330248813,-598.99053642,0.00021643,2]
[388712904,1759330248824,-94.12946358,0.00021643,2]
[388712905,1759330248833,-2716.84641493,0.000218,28]
[388712908,1759330320705,5000.0,0.0001922,14]
[388712909,1759330342954,5000.0,0.00019099,2]
[388712910,1759330431215,10000.0,0.00028767,120]
[388712913,1759330450520,10000.0,0.00028767,120]
[388712916,1759330471432,10000.0,0.00028767,120]
[388712918,1759330483525,10000.0,0.00028767,120]
[388712919,1759330495091,5535.38,0.00028767,120]
[388712920,1759330505652,5000.0,0.0001922,14]
[388712921,1759330508145,5535.3,0.00028767,120]
[388712923,1759330520968,5000.0,0.0001922,14]
[388712924,1759330528879,5000.0,0.0001922,14]
[388712925,1759330539965,10000.0,0.00028767,120]
[388712926,1759330544797,5000.0,0.0001922,14]
[388712927,1759330550403,10000.0,0.00028767,120]
[388712928,1759330552716,5000.0,0.0001922,14]
[388712930,1759330568204,5000.0,0.0001922,14]
[388712931,1759330576078,5000.0,0.0001922,14]
[388712932,1759330591481,5000.0,0.0001922,14]
[388712933,1759330599569,5000.0,0.0001922,14]
[388712935,1759330614954,5000.0,0.00019099,2]
[388712936,1759330622907,0.01,0.00019099,2]
[388712937,1759330622933,4999.99,0.00019099,2]
[388712938,1759330638139,5000.0,0.00019099,2]
[388712939,1759330646097,0.02,0.00019099,2]
[388712940,1759330646121,4999.98,0.00019099,2]
[388712941,1759330661619,5000.0,0.00019099,2]
[388712942,1759330669459,0.03,0.00019099,2]
[388712943,1759330669482,1602.06622756,0.00019099,2]
[388712944,1759330684843,5000.0,0.00019099,2]
[388712946,1759330729803,3397.94377244,0.00019099,2]
[388712947,1759330729827,1602.05622756,0.00019099,2]
[388712948,1759330737817,1078.95589692,0.00019099,2]
[388712949,1759330753826,5000.0,0.00019099,2]
[388712951,1759330762455,2318.99787552,0.00019099,2]
[388712952,1759330762481,2681.00212448,0.00019099,2]
[388712959,1759330782609,259.8903133,0.00018649,2]
[388712960,1759330785063,5000.0,0.00019099,2]
[388712961,1759330793621,1415.06958011,0.00019099,2]
[388712962,1759330808992,644.04798211,0.00019099,2]
[388712963,1759330809019,4355.95201789,0.00019099,2]
[388712964,1759330824157,300.0,0.000189,2]
[388712965,1759330824653,5000.0,0.00019099,2]
[388712968,1759330847374,344.05798211,0.00019099,2]
[388712969,1759330847402,4655.94201789,0.00019099,2]
[388712970,1759330871183,288.03875722,0.00019099,2]
[388712971,1759330874616,5040.6583923,0.00018517,2]
[388712973,1759330990524,300.0,0.00028767,120]
[388712974,1759330998169,10000.01,0.00018312,2]
[388712975,1759330998192,10000.01,0.00018312,2]
[388712976,1759330998216,3695.5338649,0.00018312,2]
[388712977,1759331003646,2292.09614258,0.0001911,2]
[388712978,1759331013214,320.497,0.00028767,120]
[388712979,1759331026859,5000.0,0.00019099,2]
[388712980,1759331047375,5000.01,0.00018459,2]
[388712981,1759331047397,6440.7360166,0.00018459,2]
[388712982,1759331049360,3559.2739834,0.00019099,2]
[388712983,1759331049383,1440.7260166,0.00019099,2]
[388712985,1759331052126,561.854315,0.00018312,2]
[388712987,1759331072271,5000.0,0.00019099,2]
[388713005,1759331160214,2997.4296684,0.00019099,2]
[388713006,1759331160239,2002.5703316,0.00019099,2]
[388713009,1759331257523,17856.36348095,0.00028767,120]
[388713015,1759331313791,-300.0,0.000191,2]
[388713016,1759331313827,-300.0,0.000191,2]
[388713017,1759331313856,-300.0,0.000191,2]
[388713018,1759331380235,5000.0,0.000191,2]
[388713019,1759331403480,3200.01,0.000191,2]
[388713020,1759331403505,1799.99,0.000191,2]
[388713021,1759331407546,200.61,0.00019,2]
[388713057,1759331432760,-300.0,0.00019175,2]
[388713058,1759331432770,-300.0,0.00019175,2]
[388713059,1759331432782,-300.0,0.00019175,2]
[388713060,1759331432792,-300.0,0.00019175,2]